fUST/lending_fUST_20260120
["ID","MTS","AMOUNT","RATE_DAILY","PERIOD"]
[402820214,1768923040862,-250.0,0.000209,10]
[402820215,1768923040873,-349.28,0.000209,2]
[402820216,1768923040882,-373.2,0.000209,2]
[402820217,1768923040891,-256.66289155,0.000209,2]
[402820218,1768923040901,-1104.521236,0.00020923,7]
[402820219,1768923040913,-600.0,0.00020947,2]
[402820220,1768923040922,-407.68233125,0.00020989,2]
[402820221,1768923040932,-902.3596719,0.00020993,2]
[402820222,1768923040942,-250.0,0.00021,10]
[402820223,1768923040952,-10000.0,0.00021,5]
[402820224,1768923040962,-277.55017792,0.00021,2]
[402820225,1768923040971,-1563.43715378,0.00021,10]
[402820226,1768923040981,-300.0,0.00021,7]
[402820227,1768923040991,-50000.0,0.00021,2]
[402820228,1768923041003,-250.0,0.000211,10]
[402820230,1768923041013,-1500.0,0.00021123,2]
[402820232,1768923041023,-1500.0,0.00021138,2]
[402820233,1768923041032,-165.0,0.00021178,4]
[402820234,1768923041045,-4418.084942,0.00021194,7]
[402820235,1768923041056,-662.712742,0.00021194,7]
[402820236,1768923041066,-15465.65804276,0.000212,30]
[402820237,1768923041076,-600.0,0.00021213,2]
[402820238,1768923041087,-600.0,0.00021224,2]
[402820239,1768923041097,-151.0,0.00021233,2]
[402820240,1768923041107,-600.0,0.00021245,2]
[402820241,1768923041116,-600.0,0.00021252,2]
[402820242,1768923041127,-1500.0,0.00021292,2]
[402820243,1768923041137,-1500.0,0.00021323,2]
[402820244,1768923041146,-600.0,0.00021323,2]
[402820245,1768923041156,-600.0,0.00021358,2]
[402820246,1768923041165,-600.0,0.00021364,2]
[402820247,1768923041175,-600.0,0.00021364,2]
[402820248,1768923041185,-1500.0,0.00021378,2]
[402820249,1768923041194,-1500.0,0.00021398,2]
[402820250,1768923041203,-1500.0,0.00021435,2]
[402820251,1768923041213,-600.0,0.00021436,2]
[402820252,1768923041222,-1500.0,0.00021494,2]
[402820253,1768923041232,-1040.59113896,0.000215,2]
[402820254,1768923041241,-12871.57492998,0.000215,2]
[402820255,1768923041252,-600.0,0.00021513,2]
[402820256,1768923041262,-600.0,0.00021528,2]
[402820257,1768923041272,-600.0,0.00021561,2]
[402820258,1768923041282,-600.0,0.0002158,2]
[402820259,1768923041292,-600.0,0.00021588,2]
[402820260,1768923041301,-600.0,0.00021591,2]
[402820261,1768923041311,-600.0,0.00021598,2]
[402820262,1768923041320,-39601.47,0.000216,2]
[402820263,1768923041329,-7026.69,0.000216,2]
[402820264,1768923041339,-1500.0,0.00021618,2]
[402820265,1768923041348,-1500.0,0.00021628,2]
[402820266,1768923041357,-600.0,0.00021649,2]
[402820267,1768923041367,-1500.0,0.00021658,2]
[402820268,1768923041377,-600.0,0.00021712,2]
[402820269,1768923041387,-600.0,0.00021731,2]
[402820270,1768923041396,-500.0,0.00021739,2]
[402820271,1768923041406,-1500.0,0.0002175,2]
[402820272,1768923041415,-159.17,0.00021773,2]
[402820273,1768923041425,-1500.0,0.00021783,2]
[402820274,1768923041435,-500.0,0.00021804,2]
[402820275,1768923041444,-600.0,0.00021812,2]
[402820276,1768923041454,-1500.0,0.00021862,2]
[402820277,1768923041474,-600.0,0.00021877,2]
[402820278,1768923041484,-600.0,0.00021885,2]
[402820279,1768923041494,-167.89,0.000219,2]
[402820280,1768923041504,-1500.0,0.00021918,2]
[402820281,1768923041514,-250.0,0.00021923,2]
[402820282,1768923041525,-600.0,0.00021928,2]
[402820283,1768923041535,-1500.0,0.00021976,2]
[402820284,1768923041544,-1500.0,0.00021992,2]
[402820285,1768923041554,-1500.0,0.00021996,2]
[402820286,1768923041564,-1680.28,0.00022,2]
[402820287,1768923041574,-578.8,0.00022,7]
[402820288,1768923041584,-184.0,0.00022,2]
[402820289,1768923041594,-172.18704626,0.00022,10]
[402820290,1768923041604,-567.66956032,0.00022,14]
[402820291,1768923041614,-774.73219504,0.00022,20]
[402820292,1768923041624,-600.0,0.00022013,2]
[402820293,1768923041634,-600.0,0.0002204,2]
[402820294,1768923041644,-600.0,0.00022045,2]
[402820295,1768923041654,-1500.0,0.00022072,2]
[402820296,1768923041664,-600.0,0.0002209,2]
[402820297,1768923041674,-600.0,0.00022094,2]
[402820298,1768923041684,-373.2,0.000221,7]
[402820299,1768923041694,-349.28,0.000221,7]
[402820300,1768923041704,-500.0,0.000221,7]
[402820301,1768923041715,-600.0,0.00022132,2]
[402820302,1768923041725,-1500.0,0.00022147,2]
[402820303,1768923041735,-600.0,0.00022172,2]
[402820304,1768923041746,-151.0,0.00022192,2]
[402820305,1768923041756,-1500.0,0.00022203,2]
[402820306,1768923041766,-243.29712588,0.0002222,2]
[402820307,1768923041776,-600.0,0.00022231,2]
[402820308,1768923041786,-157.24845598,0.00022239,5]
[402820309,1768923041796,-600.0,0.00022254,2]
[402820310,1768923041805,-1500.0,0.00022256,2]
[402820311,1768923041815,-1500.0,0.00022265,2]
[402820312,1768923041825,-1500.0,0.00022282,2]
[402820313,1768923041835,-600.0,0.00022284,2]
[402820314,1768923041845,-602.92061325,0.00022286,2]
[402820315,1768923041856,-600.0,0.00022327,2]
[402820316,1768923041866,-2898.8072169,0.00022357,2]
[402820317,1768923041876,-1043.40716341,0.0002239,2]
[402820318,1768923041886,-300.0,0.00022466,2]
[402820319,1768923041896,-200.0,0.00022466,2]
[402820320,1768923041906,-1034.25866037,0.000225,2]
[402820321,1768923041916,-500.0,0.0002251,7]
[402820322,1768923041926,-417.0,0.00022783,2]
[402820323,1768923041936,-178.0,0.00022783,2]
[402820324,1768923041946,-7026.69,0.000228,14]
[402820325,1768923041956,-300.0,0.00022807,2]
[402820326,1768923041966,-167.0,0.00022822,8]
[402820327,1768923041976,-159.62665952,0.00022927,5]
[402820328,1768923041986,-156.8854744,0.00022927,5]
[402820329,1768923041998,-442.962533,0.00022989,2]
[402820330,1768923042008,-167.0,0.00023,7]
[402820331,1768923042019,-1300.0,0.00023,5]
[402820332,1768923042028,-1023.78834759,0.00023,2]
[402820333,1768923042040,-450.0,0.00023014,2]
[402820334,1768923042055,-250.0,0.00023014,2]
[402820335,1768923042066,-39601.47,0.000231,2]
[402820336,1768923042076,-500.0,0.000231,7]
[402820337,1768923042086,-38000.0,0.0002311,7]
[402820338,1768923042097,-151.0,0.00023151,2]
[402820339,1768923042108,-2112.87802803,0.00023171,30]
[402820340,1768923042118,-7530.24,0.00023287,4]
[402820341,1768923042129,-1056.48901402,0.00023355,30]
[402820342,1768923042139,-167.89,0.000234,7]
[402820343,1768923042148,-400635.55692343,0.0002352,2]
[402820344,1768923042158,-250.0,0.00023534,2]
[402820345,1768923042168,-151.0,0.00023534,2]
[402820346,1768923042177,-250.0,0.00023534,2]
[402820347,1768923042188,-151.0,0.00023534,2]
[402820348,1768923042198,-250.0,0.00023534,2]
[402820349,1768923042207,-151.0,0.00023534,2]
[402820350,1768923042217,-151.0,0.00023534,2]
[402820351,1768923042228,-198.0,0.00023534,2]
[402820352,1768923042237,-1056.48901402,0.00023539,30]
[402820353,1768923042248,-600.0,0.00023562,2]
[402820354,1768923042259,-211.25627413,0.00023562,2]
[402820355,1768923042269,-578.8,0.000236,7]
[402820356,1768923042279,-373.2,0.000236,7]
[402820357,1768923042289,-349.28,0.000236,7]
[402820358,1768923042299,-6880.5344056,0.000237,30]
[402820359,1768923042313,-328.81,0.000237,3]
[402820360,1768923042323,-1056.48901402,0.00023723,30]
[402820361,1768923042333,-800.0,0.00023784,2]
[402820362,1768923042343,-20000.0,0.000238,60]
[402820363,1768923042353,-1056.48901402,0.00023907,30]
[402820364,1768923042363,-800.0,0.00023992,2]
[402820365,1768923042373,-798.45286774,0.00023998,2]
[402820366,1768923042383,-115895.865,0.00024,30]
[402820367,1768923042392,-1041.66666667,0.00024,7]
[402820368,1768923042403,-7506.29296432,0.00024,60]
[402820369,1768923042412,-1737.46125833,0.00024,2]
[402820370,1768923042422,-466.08366928,0.00024,2]
[402820371,1768923042432,-1021.0,0.00024,2]
[402820372,1768923042443,-151.0,0.00024,2]
[402820373,1768923042453,-151.0,0.00024,2]
[402820374,1768923042463,-151.0,0.00024,2]
[402820375,1768923042473,-460.217181,0.00024061,30]
[402820376,1768923042483,-800.0,0.00024085,2]
[402820377,1768923042492,-1056.48901402,0.00024091,30]
[402820378,1768923042506,-500.0,0.000241,7]
[402820379,1768923042516,-475.0,0.000241,30]
[402820380,1768923042526,-750.0,0.0002411,2]
[402820381,1768923042535,-151.0,0.0002411,2]
[402820382,1768923042545,-512176.67474429,0.00024142,2]
[402820383,1768923042555,-279.122496,0.00024142,2]
[402820384,1768923042564,-279.122496,0.00024142,2]
[402820385,1768923042573,-279.122496,0.00024142,2]
[402820386,1768923042583,-279.122496,0.00024142,2]
[402820387,1768923042593,-151.0,0.00024142,2]
[402820388,1768923042602,-151.0,0.00024142,2]
[402820389,1768923042612,-151.0,0.00024142,2]
[402820390,1768923042622,-151.0,0.00024142,2]
[402820391,1768923042631,-668.916938,0.00024142,2]
[402820392,1768923042641,-668.916938,0.00024142,2]
[402820393,1768923042651,-668.916938,0.00024142,2]
[402820394,1768923042661,-668.916938,0.00024142,2]
[402820395,1768923042671,-242.865887,0.00024142,2]
[402820396,1768923042681,-151.856936,0.00024142,2]
[402820397,1768923042692,-151.856936,0.00024142,2]
[402820398,1768923042702,-151.856936,0.00024142,2]
[402820399,1768923042712,-151.856936,0.00024142,2]
[402820400,1768923042722,-222.138948,0.00024142,2]
[402820401,1768923042732,-222.138948,0.00024142,2]
[402820402,1768923042742,-151.0,0.00024142,2]
[402820403,1768923042755,-151.0,0.00024142,2]
[402820404,1768923042764,-222.138948,0.00024142,2]
[402820405,1768923042774,-222.138948,0.00024142,2]
[402820406,1768923042784,-151.0,0.00024142,2]
[402820407,1768923042794,-151.0,0.00024142,2]
[402820408,1768923042804,-151.0,0.00024142,2]
[402820409,1768923042814,-167.0,0.00024164,7]
[402820410,1768923042823,-7026.69,0.000242,14]
[402820411,1768923042833,-27003.06840306,0.000242,2]
[402820412,1768923042843,-800.0,0.00024221,2]
[402820413,1768923042852,-1056.48901402,0.00024275,30]
[402820414,1768923042862,-800.0,0.00024275,2]
[402820415,1768923042872,-800.0,0.00024284,2]
[402820416,1768923042882,-5000.0,0.00024371,2]
[402820417,1768923042893,-5000.0,0.00024371,2]
[402820418,1768923042903,-5000.0,0.00024371,2]
[402820419,1768923042913,-5000.0,0.00024371,2]
[402820420,1768923042923,-5000.0,0.00024371,2]
[402820421,1768923042933,-800.0,0.00024411,2]
[402820422,1768923042943,-1056.48901402,0.00024458,30]
[402820424,1768923042953,-168.0,0.00024466,13]
[402820426,1768923042963,-800.0,0.00024492,2]
[402820428,1768923042973,-1680.28,0.000245,2]
[402820430,1768923042986,-39601.47,0.000245,2]
[402820432,1768923042995,-1126.0,0.000245,5]
[402820434,1768923043006,-800.0,0.00024614,2]
[402820436,1768923043016,-208.733,0.00024627,7]
[402820438,1768923043026,-1056.48901402,0.00024642,30]
[402820440,1768923043035,-156904.60467778,0.0002465,2]
[402820442,1768923043046,-514.5205013,0.0002465,2]
[402820443,1768923043059,-900.0,0.00024658,2]
[402820444,1768923043069,-380.0,0.00024658,2]
[402820445,1768923043079,-2000.0,0.00024693,30]
[402820446,1768923043089,-578.8,0.000247,7]
[402820447,1768923043099,-986.43,0.000247,3]
[402820448,1768923043109,-1041.66666667,0.000247,7]
[402820449,1768923043119,-1277.307459,0.0002476,5]
[402820450,1768923043132,-16839.58417813,0.00024774,2]
[402820452,1768923043142,-1000.0,0.0002478,5]
[402820454,1768923043151,-1000.0,0.000248,5]
[402820455,1768923043161,-167.89,0.000248,7]
[402820456,1768923043170,-24838.2616362,0.000248,2]
[402820457,1768923043180,-1000.0,0.0002482,5]
[402820458,1768923043189,-1056.48901402,0.00024826,30]
[402820459,1768923043199,-1351.88359924,0.00024837,2]
[402820460,1768923043210,-5402.12686256,0.00024837,2]
[402820462,1768923043220,-489.64611958,0.00024837,2]
[402820464,1768923043230,-1958.58447831,0.00024837,2]
[402820466,1768923043240,-4406.8150762,0.00024837,2]
[402820468,1768923043251,-7826.50357533,0.00024837,2]
[402820470,1768923043260,-1000.0,0.0002484,5]
[402820472,1768923043270,-1000.0,0.0002486,5]
[402820475,1768923043279,-1000.0,0.0002488,5]
[402820477,1768923043289,-1000.0,0.000249,5]
[402820479,1768923043299,-373.2,0.000249,7]
[402820481,1768923043309,-349.28,0.000249,7]
[402820482,1768923043318,-157.526267,0.000249,7]
[402820483,1768923043328,-151.0,0.000249,7]
[402820484,1768923043337,-152.114725,0.000249,7]
[402820485,1768923043347,-324800.64067735,0.000249,2]
[402820492,1768923043715,-151.0,0.00014991,2]
[402820493,1768923043725,-151.0,0.00014991,2]
[402820494,1768923043735,-445.202766,0.00023534,2]
[402820495,1768923043748,-515.58960006,0.00024,7]
[402820496,1768923043760,-526.07706661,0.00024,7]
[402820497,1768923043770,-605.56055183,0.000249,2]
[402820498,1768923043781,-1063.87289997,0.000249,2]
[402820499,1768923043797,-461.67526834,0.00024082,2]
[402820500,1768923043806,-2782.05779602,0.000249,2]
[402820501,1768923043818,-484.86821652,0.000249,2]
[402820502,1768923043933,-151.0,0.00014991,2]
[402820503,1768923043943,-151.0,0.00014991,2]
[402820504,1768923043952,-478.75725327,0.0002463,2]
[402820505,1768923043962,-500.0,0.00024658,2]
[402820506,1768923043972,-992.49286698,0.000249,2]
[402820507,1768923043984,-392.72318,0.000249,2]
[402820508,1768923043995,-1277.54212477,0.000249,2]
[402820509,1768923044010,-272.83182917,0.000249,2]
[402820510,1768923044025,-300.0,0.000249,2]
[402820511,1768923044036,-11139.80658943,0.000249,2]
[402820521,1768923046477,-1411.95357189,0.00014841,2]
[402820522,1768923046578,-1437.1938843,0.00014841,2]
[402820524,1768923047853,-2150.85254381,0.00014841,2]
[402820525,1768923047863,-500.0,0.00024795,2]
[402820526,1768923047872,-1079.51796248,0.000249,2]
[402825346,1768923911815,-200.0,0.00011289,20]
[402825744,1768923940690,10000.0,0.00027397,120]
[402825785,1768923943463,-200.0,0.00012623,10]
[402825979,1768923957937,10000.0,0.00027397,120]
[402826098,1768923966660,10000.0,0.00027397,120]
[402826197,1768923974311,10000.0,0.00027397,120]
[402826387,1768923988390,3452.0,0.00027397,120]
[402827562,1768924076581,572.89,0.00027397,120]
[402828047,1768924114607,309.63928961,9e-05,10]
[402828112,1768924119540,500.0,0.00027397,120]
[402828116,1768924119774,500.0,0.00027397,120]
[402828121,1768924120021,500.0,0.00027397,120]
[402828126,1768924120310,453.44,0.00027397,120]
[402829545,1768924232703,-363.67382505,0.00012248,10]
[402829546,1768924232714,-1140.38279329,0.00012248,10]
[402829623,1768924238766,-1454.92119538,0.00012248,10]
[402829624,1768924238821,-2041.02218628,0.00012248,10]
[402829625,1768924238831,-2000.0,0.00012372,10]
[402829627,1768924238841,-5000.0,0.00012497,10]
[402829628,1768924238850,-169.87273391,0.00012719,2]
[402829629,1768924238860,-600.0,0.00012719,2]
[402829630,1768924238869,-351.00902452,0.00013273,2]
[402829631,1768924238879,-397.675753,0.00013699,2]
[402829632,1768924238889,-1000.0,0.00013699,2]
[402829633,1768924238898,-166.8945979,0.00013889,2]
[402829634,1768924238908,-313.96556081,0.00013889,2]
[402829636,1768924238917,-417.63629687,0.00013889,2]
[402829637,1768924238927,-292.84712438,0.00013889,2]
[402829638,1768924238936,-182.59605464,0.00013889,2]
[402829639,1768924238946,-500.0,0.00013889,2]
[402829640,1768924238956,-500.0,0.00013889,2]
[402829641,1768924238966,-303.75278078,0.00013889,2]
[402829642,1768924238975,-1000000.0,0.0001389,2]
[402829643,1768924238985,-100000.0,0.0001399,2]
[402829645,1768924238994,-1306.04994831,0.000141,2]
[402829646,1768924239004,-4904.0,0.00014266,8]
[402829647,1768924239013,-151.0,0.000143,2]
[402829648,1768924239023,-151.0,0.000143,2]
[402829649,1768924239033,-151.0,0.000143,2]
[402829650,1768924239042,-151.0,0.000143,2]
[402829651,1768924239052,-151.0,0.000143,2]
[402829652,1768924239061,-151.0,0.000143,2]
[402829653,1768924239070,-500.0,0.00014366,2]
[402829655,1768924239080,-500.0,0.0001437,2]
[402829656,1768924239089,-500.0,0.0001437,2]
[402829657,1768924239099,-5000.0,0.00014371,2]
[402829658,1768924239109,-5000.0,0.00014371,2]
[402829659,1768924239118,-5000.0,0.00014371,2]
[402829660,1768924239128,-5000.0,0.00014371,2]
[402829661,1768924239138,-5000.0,0.00014371,2]
[402829663,1768924239151,-2522.24555723,0.0001451,2]
[402829664,1768924239162,-200.44982601,0.00014719,2]
[402829665,1768924239172,-269.35915157,0.000149,2]
[402829666,1768924239183,-269.35915156,0.000149,2]
[402829667,1768924239194,-269.35915156,0.000149,2]
[402829668,1768924239205,-500.0,0.00014999,2]
[402829669,1768924239215,-500.0,0.00014999,2]
[402829670,1768924239225,-500.0,0.00014999,2]
[402829671,1768924239235,-502.09855324,0.00014999,2]
[402829673,1768924239255,-263.941842,0.00015068,2]
[402829674,1768924239266,-1306.04994827,0.00016353,2]
[402829675,1768924239278,-1041.66666667,0.00016661,2]
[402829676,1768924239288,-231.02691812,0.00016719,2]
[402829677,1768924239299,-313.0,0.00017342,3]
[402829678,1768924239309,-328.84,0.000178,3]
[402829679,1768924239319,-500.0,0.00017983,2]
[402829681,1768924239329,-263.941842,0.00018493,2]
[402829682,1768924239340,-1306.04994827,0.00018606,2]
[402829683,1768924239350,-261.60401022,0.00018719,2]
[402829684,1768924239360,-303.10001603,0.000189,2]
[402829685,1768924239369,-303.10001603,0.000189,2]
[402829686,1768924239379,-303.10001603,0.00019089,2]
[402829687,1768924239389,-303.10001603,0.00019089,2]
[402829688,1768924239399,-507.6,0.00019178,2]
[402829690,1768924239411,-846.0132,0.00019178,2]
[402829691,1768924239420,-846.0132,0.00019178,2]
[402829692,1768924239431,-846.0132,0.00019178,2]
[402829693,1768924239440,-503.47,0.00019178,2]
[402829694,1768924239451,-1269.0198,0.00019178,2]
[402829695,1768924239460,-7026.69,0.000192,2]
[402829696,1768924239470,-335.88,0.000192,2]
[402829698,1768924239482,-39601.47,0.000192,2]
[402829699,1768924239491,-167.89,0.000192,2]
[402829700,1768924239501,-303.10001603,0.00019278,2]
[402829701,1768924239511,-303.10001603,0.00019278,2]
[402829702,1768924239520,-314.35,0.000193,2]
[402829703,1768924239531,-151.0,0.00019315,2]
[402829704,1768924239541,-303.10001603,0.00019467,2]
[402829705,1768924239550,-303.10001603,0.00019467,2]
[402829706,1768924239560,-300.0,0.00019471,2]
[402829707,1768924239569,-163.0,0.00019534,3]
[402829709,1768924239579,-303.10001603,0.00019656,2]
[402829710,1768924239588,-303.10001603,0.00019656,2]
[402829711,1768924239598,-454.65002405,0.00019845,4]
[402829712,1768924239607,-454.65002405,0.00019845,4]
[402829713,1768924239617,-369.2068,0.0002,4]
[402829714,1768924239627,-676.8068,0.0002,4]
[402829715,1768924239636,-846.0132,0.0002,4]
[402829716,1768924239646,-300.0,0.0002,2]
[402829718,1768924239656,-230.9802,0.0002,4]
[402829719,1768924239673,-250.0,0.0002,10]
[402829720,1768924239683,-2000.0,0.0002,7]
[402829721,1768924239692,-454.65002405,0.00020034,4]
[402829722,1768924239701,-454.65002405,0.00020034,4]
[402829723,1768924239711,-3551.00741905,0.000201,2]
[402829724,1768924239720,-250.0,0.000201,10]
[402829725,1768924239730,-3551.00741901,0.0002012,2]
[402829726,1768924239739,-3551.00741901,0.0002014,2]
[402829728,1768924239749,-3551.00741901,0.0002016,2]
[402829729,1768924239758,-3551.00741901,0.0002018,2]
[402829730,1768924239768,-3551.00741901,0.000202,2]
[402829731,1768924239777,-250.0,0.000202,10]
[402829732,1768924239787,-450.04896595,0.00020223,4]
[402829733,1768924239797,-303.10001605,0.00020223,4]
[402829734,1768924239806,-151.0,0.00020274,2]
[402829735,1768924239815,-250.0,0.000203,10]
[402829737,1768924239825,-250.0,0.000204,10]
[402829738,1768924239835,-1500.0,0.00020408,2]
[402829739,1768924239844,-902.3596719,0.00020435,2]
[402829740,1768924239854,-250.0,0.000205,10]
[402829741,1768924239864,-2000.0,0.000205,7]
[402829742,1768924239873,-600.0,0.00020505,2]
[402829743,1768924239883,-1500.0,0.00020513,2]
[402829744,1768924239892,-7530.24,0.00020547,2]
[402829746,1768924239901,-397.675753,0.00020548,2]
[402829747,1768924239911,-600.0,0.00020562,2]
[402829748,1768924239920,-500.0,0.00020578,2]
[402829749,1768924239930,-600.0,0.00020595,2]
[402829750,1768924239939,-335.88,0.000206,2]
[402829751,1768924239949,-39601.47,0.000206,2]
[402829752,1768924239958,-250.0,0.000206,10]
[402829753,1768924239968,-600.0,0.00020616,2]
[402829755,1768924239977,-600.0,0.00020637,2]
[402829756,1768924239986,-600.0,0.0002067,2]
[402829757,1768924239996,-1500.0,0.00020682,2]
[402829758,1768924240005,-7026.69,0.000207,2]
[402829759,1768924240014,-250.0,0.000207,10]
[402829760,1768924240024,-600.0,0.00020707,2]
[402829761,1768924240034,-292.18110233,0.00020719,2]
[402829762,1768924240043,-600.0,0.00020749,2]
[402829763,1768924240053,-600.0,0.00020773,2]
[402829765,1768924240062,-600.0,0.00020774,2]
[402829766,1768924240072,-600.0,0.00020798,2]
[402829767,1768924240082,-314.35,0.000208,2]
[402829768,1768924240092,-250.0,0.000208,10]
[402829769,1768924240101,-600.0,0.00020812,2]
[402829770,1768924240111,-1500.0,0.00020819,2]
[402829771,1768924240120,-1500.0,0.00020822,2]
[402829772,1768924240129,-1500.0,0.00020825,2]
[402829774,1768924240139,-1500.0,0.00020827,2]
[402829775,1768924240148,-1500.0,0.00020837,2]
[402829776,1768924240158,-1306.04994827,0.00020859,2]
[402829777,1768924240168,-600.0,0.00020885,2]
[402829778,1768924240178,-600.0,0.00020887,2]
[402829779,1768924240188,-250.0,0.000209,10]
[402829780,1768924240198,-1500.0,0.00020917,2]
[402829781,1768924240208,-1047.216895,0.00020952,7]
[402829783,1768924240218,-279.257839,0.00020997,7]
[402829784,1768924240227,-300.0,0.00021,7]
[402829785,1768924240237,-664.853715,0.00021,7]
[402829786,1768924240247,-250.0,0.00021,10]
[402829787,1768924240256,-2000.0,0.00021,7]
[402829788,1768924240266,-6338.8340841,0.00021,7]
[402829789,1768924240275,-600.0,0.00021011,2]
[402829790,1768924240286,-1382.87645,0.00021049,7]
[402829791,1768924240296,-162.561071,0.00021083,7]
[402829793,1768924240305,-250.0,0.000211,10]
[402829794,1768924240315,-328.81,0.000211,3]
[402829795,1768924240325,-500.0,0.0002114,2]
[402829796,1768924240335,-157.082534,0.00021141,7]
[402829797,1768924240344,-600.0,0.00021148,2]
[402829798,1768924240353,-1500.0,0.00021149,2]
[402829799,1768924240363,-600.0,0.00021149,2]
[402829800,1768924240372,-1500.0,0.00021169,2]
[402829802,1768924240381,-698.144597,0.00021184,7]
[402829803,1768924240391,-600.0,0.00021219,2]
[402829804,1768924240400,-1500.0,0.00021222,2]
[402829805,1768924240413,-1056.48901402,0.00021227,30]
[402829808,1768924240423,-600.0,0.00021228,2]
[402829809,1768924240433,-3457.191126,0.00021233,7]
[402829810,1768924240443,-151.0,0.00021233,2]
[402829811,1768924240453,-600.0,0.00021246,2]
[402829814,1768924240463,-1500.0,0.00021282,2]
[402829815,1768924240472,-600.0,0.00021285,2]
[402829816,1768924240483,-1500.0,0.00021288,2]
[402829817,1768924240493,-600.0,0.0002129,2]
[402829818,1768924240502,-600.0,0.00021311,2]
[402829819,1768924240513,-600.0,0.00021327,2]
[402829820,1768924240523,-1500.0,0.00021335,2]
[402829821,1768924240533,-600.0,0.00021363,2]
[402829823,1768924240543,-600.0,0.00021389,2]
[402829824,1768924240552,-1500.0,0.00021391,2]
[402829825,1768924240561,-1056.48901402,0.00021455,30]
[402829826,1768924240571,-600.0,0.00021464,2]
[402829827,1768924240580,-600.0,0.00021482,2]
[402829828,1768924240589,-500.0,0.00021491,2]
[402829829,1768924240599,-2000.0,0.000215,7]
[402829830,1768924240608,-600.0,0.00021505,2]
[402829831,1768924240618,-600.0,0.00021534,2]
[402829833,1768924240627,-159.62665952,0.00021563,5]
[402829834,1768924240637,-600.0,0.00021627,2]
[402829835,1768924240646,-600.0,0.00021628,2]
[402829836,1768924240655,-500.0,0.00021657,2]
[402829837,1768924240665,-600.0,0.0002167,2]
[402829838,1768924240674,-600.0,0.00021671,2]
[402829839,1768924240683,-1056.48901402,0.00021682,30]
[402829840,1768924240693,-600.0,0.00021699,2]
[402829842,1768924240702,-1500.0,0.00021704,2]
[402829843,1768924240712,-330.0,0.00021704,2]
[402829844,1768924240721,-600.0,0.00021707,2]
[402829845,1768924240731,-164.0,0.00021726,5]
[402829846,1768924240740,-600.0,0.00021731,2]
[402829847,1768924240750,-600.0,0.00021731,2]
[402829848,1768924240759,-600.0,0.00021765,2]
[402829849,1768924240769,-600.0,0.0002178,2]
[402829851,1768924240781,-1500.0,0.00021784,2]
[402829852,1768924240791,-1500.0,0.00021792,2]
[402829853,1768924240802,-1500.0,0.00021825,2]
[402829854,1768924240812,-600.0,0.00021829,2]
[402829855,1768924240824,-1500.0,0.0002187,2]
[402829856,1768924240834,-500.0,0.00021872,2]
[402829857,1768924240844,-1500.0,0.00021889,2]
[402829858,1768924240855,-167.89,0.000219,2]
[402829859,1768924240866,-1056.48901402,0.00021909,30]
[402829860,1768924240877,-1505.1522938,0.00021918,7]
[402829861,1768924240887,-263.941842,0.00021918,2]
[402829863,1768924240898,-179.83,0.00021932,2]
[402829864,1768924240908,-600.0,0.00021943,2]